Cogmind - Beta 14 @@@ ROGUE MODE // 2024.12.30 @ 18:46:42 Player: Willow Result: Destroyed by C0-CZH(R) with Subdweller Laser Performance ------------- Evolutions (0) 0 Regions Visited (2) 400 Robots Destroyed (34) 170 Value Destroyed (811) 811 Prototype IDs (0) 0 Alien Tech Used (0) 0 Bonus (0) 0 TOTAL SCORE: 1381 Bonus ------- None Cogmind --------- Core Integrity 0/250 Matter 139/300 Energy 200/200 System Corruption 0% Temperature Cool (6) Movement Rolling (120) Ox1 Location -10/Subcaves Parts ------- > --- POWER (1) -------- Subdweller Power Source > --- PROPULSION (2) --- Subdweller Monowheel > --- UTILITY (2) ------ Large Storage Unit Light Armor Plating > --- WEAPON (2) ------- Subdweller Laser Light Cannon > --- INVENTORY (15) --- Light Nuclear Core Large Storage Unit Medium Battery (150) High-capacity Matter Pod (124) Visual Processing Unit Sensor Array Light Armor Plating Light Armor Plating Tractor Beam Peak State ------------ > --- POWER ------------ Subdweller Power Source > --- PROPULSION ------- Light Treads Subdweller Monowheel > --- UTILITY ---------- Large Storage Unit Light Armor Plating > --- WEAPON ----------- Heavy Assault Rifle Light Cannon > --- INVENTORY -------- Light Nuclear Core Large Storage Unit Medium Battery High-capacity Matter Pod Visual Processing Unit Sensor Array Light Armor Plating Light Armor Plating Light Armor Plating Light Armor Plating Tractor Beam Subdweller Laser Light Cannon [Rating: 11] Favorites ----------- Power Light Ion Engine Engine Light Ion Engine Power Core Light Nuclear Core Propulsion Light Treads Treads Light Treads Wheel Compact Wheel Utility Large Storage Unit Device Seismic Detector Storage Large Storage Unit Protection Light Armor Plating Weapon Assault Rifle Energy Gun EM Pulse Gun Ballistic Gun Assault Rifle Ballistic Cannon Light Cannon Build | -11 -10 -10 ------- Run | Yrd Mat Sub Slots Evolved . | . . . Power . | . . . Propulsion . | . . . Utility . | . . . Weapon . | . . . Parts Attached 49 | 9 23 17 Power 7 | 1 5 1 Engine 6 | 1 4 1 Core 1 | . 1 . Reactor . | . . . Propulsion 12 | 2 4 6 Treads 6 | 2 2 2 Leg . | . . . Wheel 6 | . 2 4 Hover . | . . . Flight . | . . . Utility 18 | 3 8 7 Device 9 | 2 5 2 Storage 4 | 1 3 . Processor . | . . . Hackware . | . . . Protection 5 | . . 5 Artifact . | . . . Weapon 12 | 3 6 3 Energy Gun 2 | 1 . 1 Energy Cannon . | . . . Ballistic Gun 5 | 2 2 1 Ballistic Cannon 5 | . 4 1 Launcher . | . . . Special Weapon . | . . . Impact Weapon . | . . . Slashing Weapon . | . . . Piercing Weapon . | . . . Special Melee Weapon . | . . . Unidentified Prototypes . | . . . Parts Lost 14 | . 7 7 Power 2 | . 2 . Propulsion 4 | . 1 3 Utility 4 | . 2 2 Weapon 4 | . 2 2 Highest Loss Streak 4 | . 4 4 To Critical Strikes . | . . . Average Slot Usage (%) 98 | . 98 98 Engine 13 | . 13 14 Treads 22 | . 25 8 Wheel 5 | . 2 17 Device 14 | . 15 7 Storage 11 | . 11 14 Protection 1 | . . 6 Ballistic Gun 19 | . 22 8 Ballistic Cannon 7 | . 5 19 Peak Build Rating 11 | 9 10 11 Average Rating 7 | 8 7 9 On Entrance 5 | . 9 8 Naked Turns . | . . . Heaviest Build 34 | 13 32 34 Greatest Support 40 | 40 40 32 Greatest Overweight (x) 3 | 3 . 2 Average Overweight (x) . | . . . Largest Inventory Capacity 15 | 8 15 15 Average Capacity 10 | 5 12 15 Most Carried 14 | 3 14 13 Average Carried 6 | 2 7 12 Final Capacity 15 | 5 15 15 Final Carried 11 | 2 11 9 Class Distribution -------------------- 86% | Mutant 13% | Scavenger-Mutant Dominant Class ---------------- Mutant | -10/Materials Scavenger-Mutant | -10/Subcaves Resources | -11 -10 -10 ----------- Run | Yrd Mat Sub Matter Collected 1377 | 362 828 187 Remotely 635 | . 625 10 Salvage Created 1140 | 178 798 164 Parts 69 | 14 44 11 Haulers Intercepted 1 | . 1 . Recyclers Shooed 1 | . 1 . Parts Field Recycled . | . . . Retrieved Matter . | . . . Parts Self-Destructed 1 | . . 1 Prevented . | . . . Kills | -11 -10 -10 ------- Run | Yrd Mat Sub Combat Hostiles Destroyed 21 | . 16 5 Guns 14 | . 13 1 Cannons 7 | . 3 4 Classes Destroyed 9 | 3 4 2 Worker 4 | 4 . . Tunneler 1 | 1 . . Hauler 1 | . 1 . Recycler 4 | 1 3 . Watcher 3 | . 3 . Swarmer 3 | . 3 . Grunt 13 | . 13 . Sentry 1 | . . 1 Subdweller 4 | . . 4 Best Kill Streak 6 | 2 6 1 Combat Bots Only 4 | . 4 1 Max Kills in Single Turn 1 | 1 1 1 Gunslinging . | . . . Exploded . | . . . Melee . | . . . Uniques/NPCs Destroyed . | . . . Combat | -11 -10 -10 -------- Run | Yrd Mat Sub Hostile Shots Fired 150 | . 111 39 Missed 37 | . 25 12 Damage Taken 1666 | . 1007 659 Core 268 | . 175 93 Absorbed by Shields . | . . . Regen/Repaired (Parts) 133 | . 133 . Core Remaining (%) 100 | 100 . . Volleys Fired 126 | 12 88 26 Largest 2 | 2 2 2 Hottest 95 | 40 70 95 Shots Fired 250 | 24 175 51 Gun 197 | 24 150 23 Cannon 53 | . 25 28 Launcher . | . . . Special . | . . . Kinetic 249 | 24 175 50 Thermal 1 | . . 1 Explosive . | . . . Electromagnetic . | . . . Robot Hit Streak 12 | 5 12 9 Robot Miss Streak 6 | 2 6 2 Penetration Max . | . . . Secondary Targets 1 | . 1 . Max Gunslinging Chain 1 | . 1 . Shots Hit Robots 161 | 14 109 38 Core Hits 55 | 7 39 9 Critical Kills . | . . . Critical Parts Destroyed . | . . . Critical Strikes . | . . . Melee Attacks . | . . . Impact . | . . . Slashing . | . . . Piercing . | . . . Sneak Attacks . | . . . Combat Hostiles . | . . . Follow-up Attacks . | . . . Damage Inflicted 2070 | 179 1430 461 Guns 1571 | 179 1229 163 Cannons 487 | . 189 298 Explosions . | . . . Melee . | . . . Ramming 12 | . 12 . Kinetic 2058 | 179 1418 461 Thermal . | . . . Explosive . | . . . Electromagnetic . | . . . Impact . | . . . Slashing . | . . . Piercing . | . . . Highest Corruption . | . . . Average Corruption . | . . . Corruption Purged . | . . . Corruption Blocked . | . . . Overload Shots . | . . . Overflow Damage . | . . . Projectiles . | . . . Explosions . | . . . Melee . | . . . Knockbacks 7 | . 3 4 Impact . | . . . Kinetic 7 | . 3 4 Secondary . | . . . Self-Inflicted Damage . | . . . Shots . | . . . Rammed 2 | . 2 . Targets Rammed 3 | . 3 . Kicked . | . . . Crushed 1 | . 1 . Highest Temperature 27 | . 27 10 Average Temperature 8 | . 8 10 Received Heat Transfer 630 | . 483 147 Siege Activations . | . . . Robots Corrupted . | . . . Combat Hostiles . | . . . Parts Fried . | . . . Impact Corruptions . | . . . Robots Melted . | . . . Combat Hostiles . | . . . Parts Melted . | . . . Heat Transferred . | . . . Parts Sabotaged . | . . . Parts Stolen . | . . . Parts Stripped . | . . . Power Chain Reactions . | . . . Alert | -11 -10 -10 ------- Run | Yrd Mat Sub Peak Influence 216 | 30 216 . Initial . | . . . Average 58 | 8 80 . Maximum Alert Level 1 | . 1 . Low Security (%) 99 | 100 98 . Level 1 . | . 1 . Level 2 . | . . . Level 3 . | . . . Level 4 . | . . . Level 5 . | . . . High Security . | . . . Max Security . | . . . Squads Dispatched 4 | . 4 . Investigation 2 | . 2 . Extermination . | . . . Reinforcement 2 | . 2 . Assault . | . . . Garrison . | . . . Intercept . | . . . Searches Triggered . | . . . Construction Impeded . | . . . Haulers Reinforced . | . . . Active Scanning Responses . | . . . Cargo Convoy Interrupts . | . . . Stealth | -11 -10 -10 --------- Run | Yrd Mat Sub Distress Signals 3 | . 3 . Communications Jammed . | . . . Distress Signals . | . . . Times Spotted 43 | . 36 7 Peak Tracking Total 6 | . 6 2 Tactical Retreats 3 | . 3 . Traps | -11 -10 -10 ------- Run | Yrd Mat Sub Traps Triggered 2 | . 2 . Indirectly . | . . . Trap Hack Attempts . | . . . Triggered . | . . . Disarmed . | . . . Reprogrammed . | . . . Reused . | . . . Traps Extracted . | . . . Installed . | . . . Triggered . | . . . Machines | -11 -10 -10 ---------- Run | Yrd Mat Sub Machines Disabled 1 | . 1 . Max in Single Turn 1 | . 1 . Machines Repaired . | . . . Machines Dismantled . | . . . Machines Sabotaged . | . . . Overloaded Fab Kills . | . . . Hacking | -11 -10 -10 --------- Run | Yrd Mat Sub Machines Accessed 8 | . 8 . Terminals 6 | . 6 . Fabricators . | . . . Repair Stations 1 | . 1 . Recycling Units 1 | . 1 . Scanalyzers . | . . . Garrison Access . | . . . Total Hacks 24 | . 24 . Successful 11 | . 11 . Failed 13 | . 13 . Catastrophic 1 | . 1 . Database Lockouts . | . . . Manual 18 | . 18 . Terminals 18 | . 18 . Fabricators . | . . . Repair Stations 2 | . 2 . Recycling Units 4 | . 4 . Scanalyzers . | . . . Garrison Access . | . . . Terminal Hacks 2 | . 2 . Robot Analysis 1 | . 1 . Terminal Index 1 | . 1 . Fabricator Hacks . | . . . Repair Station Hacks 2 | . 2 . Scan Component 1 | . 1 . Repair 1 | . 1 . Recycling Unit Hacks 2 | . 2 . Report Inventory 1 | . 1 . Retrieve Components 1 | . 1 . Scanalyzer . | . . . Garrison Access Hacks . | . . . Unauthorized Hacks 5 | . 5 . Terminals 4 | . 4 . Botnet 4 | . 4 . Fabricators . | . . . Repair Stations . | . . . Recycling Units 1 | . 1 . Mask 1 | . 1 . Scanalyzers . | . . . Garrison Access . | . . . Data Cores Recovered . | . . . Used . | . . . Hacking Detections 8 | . 8 . Full Trace Events 7 | . 7 . Feedback Events . | . . . Feedback Blocked . | . . . Robot Schematics Acquired . | . . . Robots Built . | . . . Authchips . | . . . Time . | . . . Total Robot Build Rating . | . . . Part Schematics Acquired . | . . . Parts Built . | . . . Authchips . | . . . Time . | . . . Total Part Build Rating . | . . . Parts Repaired 1 | . 1 . Time 26 | . 26 . Parts Recycled . | . . . Recycled Matter . | . . . Retrieved Matter . | . . . Retrieved Components 10 | . 10 . Parts Scanalyzed . | . . . Part Schematics Acquired . | . . . Parts Damaged . | . . . Bothacking | -11 -10 -10 ------------ Run | Yrd Mat Sub Used RIF Installer . | . . . Robots Hacked . | . . . Non-combat . | . . . Combat . | . . . Robot Hacks Applied . | . . . Relay Couplers Released . | . . . Fabnet Peak Effective % . | . . . Robots Rewired . | . . . Allies Hacked . | . . . Hacks Repelled . | . . . Allies | -11 -10 -10 -------- Run | Yrd Mat Sub Total Allies . | . . . Largest Group . | . . . Highest-Rated Group . | . . . Highest-Rated Ally . | . . . Total Orders . | . . . Ally Attacks . | . . . Total Damage . | . . . Kills . | . . . Allies Corrupted . | . . . Allies Melted . | . . . Intel | -11 -10 -10 ------- Run | Yrd Mat Sub Robot Analysis Total 1 | . 1 . Derelict Logs Recovered . | . . . Drone Launches . | . . . Drone Recoveries . | . . . Exploration | -11 -10 -10 ------------- Run | Yrd Mat Sub Turns Passed 3023 | 804 1789 430 Spaces Moved 1312 | 138 909 265 Core 7 | 7 . . Treads 928 | 131 780 17 Legs . | . . . Wheels 377 | . 129 248 Hover . | . . . Flight . | . . . Fastest Speed 50 | 50 100 100 Average Speed 145 | 158 151 118 Slowest Speed 240 | 200 160 240 Overloaded Moves . | . . . Propulsion Burnouts . | . . . Robots Hopped . | . . . Cave-ins Triggered . | . . . Exploration Rate (%) 42 | 8 96 24 Regions Visited 2 Branch Regions 1 Pre-discovered Areas 1 | . . 1 Known Exits Taken . | . . . Unknown Exits Taken 2 | 1 1 . Scrap Searched . | . . . Spaces Dug . | . . . Terrain Destroyed . | . . . Melee . | . . . Projectile . | . . . AOE . | . . . Terrain Rammed . | . . . Walls Destroyed . | . . . Machines Disabled . | . . . Actions | -11 -10 -10 --------- Run | Yrd Mat Sub Total 2162 | 697 1139 326 Wait 640 | 532 94 14 Move 1310 | 137 908 265 Hop . | . . . Pick Up 19 | 3 13 3 Fast Attach 21 | 9 10 2 Attach 9 | . 4 5 Detach 4 | 1 3 . Swap 19 | . 9 10 Drop 11 | 3 7 1 Fire 126 | 12 88 26 Melee . | . . . Ram . | . . . Kick . | . . . Crush 3 | . 3 . Escape Stasis . | . . . Rewire . | . . . Trap . | . . . Miscellaneous . | . . . Route ------- -11/Scrapyard -10/Materials (discovered 5 exits: [*Mat x3] / [*Min] / [*Sub]) -10/Subcaves History --------- Turn | Location | Event 12 | -11/Scrapyard | Discovered new exit (range 16) 805 | -11/Scrapyard | Entered Materials 806 | -10/Materials | Build established: Mutant 1004 | -10/Materials | Discovered new exit (range 14) 1256 | -10/Materials | Discovered new exit (range 4) 1418 | -10/Materials | Repaired Lgt. Treads 1485 | -10/Materials | Discovered new exit (range 10) 1707 | -10/Materials | Discovered new exit (range 7) 1936 | -10/Materials | Core integrity fell below 50% 1999 | -10/Materials | Discovered new exit (range 12) 2475 | -10/Materials | Lost 4 parts (1p1n2w) 2594 | -10/Materials | Entered Subcaves 2685 | -10/Subcaves | Learned location of Zion (-6) 2685 | -10/Subcaves | Met a Zionite searching for "candidates" 2760 | -10/Subcaves | Core integrity fell below 20% 3024 | -10/Subcaves | Destroyed by C0-CZH(R) with Subdweller Laser Last Messages --------------- 02803_ Com. Wheel destroyed. 02807_ R5-KXP(R) knocked back. 02810_ R5-KXP(R) destroyed. 02821_ Acquired Sub. Monowheel. 02822_ Acquired 39 matter. 02845_ Lgt. Armor Plating destroyed. 02856_ 5O-IF6(R) knocked back. 02859_ 5O-IF6(R) destroyed. 02860_ Acquired 27 matter. 02863_ Acquired 1 matter. 02863_ Acquired 5 matter. 02863_ Acquired 3 matter. 02991_ Subatomizers dissect the Sub. Optics. 03000_ Lgt. Treads destroyed. 03003_ 0O-FTN(R) destroyed. 03004_ Lgt. Cannon destroyed. 03007_ C0-CZH(R) knocked back. 03012_ Critical hit (Destroy). 03012_ Lgt. Armor Plating destroyed. 03016_ Hvy. Assault Rifle destroyed. Map ----- +----------------------------------------------------+ | ?????????????????????# #?# """???#" #???? | | ?????????????????????# ### #????# #???? | | ?????????????????????####"" "" ##???## ##??? | | ????????????????????????#"" """"" ##????# #??? | | ???????????????????????##"" " """ ##?????# ####? | | ?????????????????????###"" ########?####?# " ## | | ?????????????????????#""# ######???# ### & | | ?????????????????????# " ## ##?## # && | | ?????????????????????## # ### % &[ | | ??????????????????????# " | | ?????????????????????## " # ## # | | ?????????????????????#"" ## ##"% "#### | | ?????????????????????# ### #;"& "#??# """ | | ?????????????????????## #### ;; &! ##?####" | | ??????????????????????# ";; #####? | | ??????????????????????#"" ;; | | ?????????????????????## " ;#"# ### | | ?????????????????????# " ; ### #####?? | | ?????????????????????## ; ##?????? | | ?????????????????????## ##?###??? | | ?????????????????????# ### ##??# | | ?????????????????????# ???? | | ???????????????????#### ; ????? | | ???????????????????# ### ###### ????? | | ???????????????????# ## ##???# ##????? | | ??????????????????## ##@ #?### ##?###?? | | ??????????????????# ### #?# ###?## ### | | ???????????# ?????# ## = %##?# ##??# ## | | ???????????# ## ###%* ##??# #### | | ???????? ###[ #### # | | ???????? %R ## | | ???????? %% ### | | ???????? ### # #?? | | ????????? ###### #?#######?? | | ?????????## # #????## #?????????? | | ????????????######## ##### ##?????###?????????? | | ???????????????????##????######??????????????????? | | ?????????????????????????????????????????????????? | | ?????????????????????????????????????????????????? | | ?????????????????????????????????????????????????? | | ?????????????????????????????????????????????????? | | ?????????????????????????????????????????????????? | | ?????????????????????????????????????????????????? | | ?????????????????????????????????????????????????? | | ?????????????????????????????????????????????????? | | ?????????????????????????????????????????????????? | | ?????????????????????????????????????????????????? | | ?????????????????????????????????????????????????? | | ?????????????????????????????????????????????????? | | ?????????????????????????????????????????????????? | +----------------------------------------------------+ Best States ------------- Heat Dissipation 25 Energy Generation 15 Energy Capacity 250 Matter Stores 300 Matter Capacity 300 Sight Range 16 Robot Scan Range 14 Terrain Scan Range 16 Terrain Scan Density 10 Armor Coverage 150 Evasion (%) 40 Recoil Reduction 2 Item Schematics ----------------- None Robot Schematics ------------------ None Fabricated ------------ Nothing Alien Tech Used ----------------- None Achievements -------------- None Challenges ------------ None Game ------ Seed NuclearAntimissileTerminator Manual? 0 Play Time 00:22:29 Cumulative 38.7 hours Start 2024.12.30 @ 18:25:32 End 2024.12.30 @ 18:46:42 Sessions 1 Manual Loads 0 Difficulty Rogue Special Mode None Game No. 26 Rogue 11 Adventurer 15 Explorer 0 Win Type - Total 0 Types 0/0/0/0/0/0/0/0/0 Lore% 20 Gallery% 30 Achievement% 32 Wizard Run 0 Options --------- Layout 1 ASCII 0 Keyboard 0 Movement Mouse Keybinds 0 Fullscreen 1 Font 24/Smallcaps Map View 50x35 Zoom Use 0% Tactical HUD 1 Map Filters NONE Filters NONE Steam 1 RUN: 7bb7b032-8718-4990-9c3f-7d7e7f4f38e1